fUST/lending_fUST_20251106
["ID","MTS","AMOUNT","RATE_DAILY","PERIOD"]
[393256580,1762389316409,187.78006525,0.00037284,120]
[393256581,1762389317068,194.72792766,0.00037284,120]
[393256582,1762389317675,201.93286099,0.00037284,120]
[393256583,1762389318288,209.40437684,0.00037284,120]
[393256584,1762389319108,217.15233878,0.00037284,120]
[393256585,1762389609173,191.72842804,0.00037286,120]
[393256594,1762389849512,162.889348,0.00030137,120]
[393256614,1762390232220,-1123.02642622,0.00020393,9]
[393256615,1762390232229,-300.0,0.00020599,2]
[393256616,1762390232238,-1194.43304526,0.00020635,2]
[393256617,1762390232247,-150.0,0.0002064,2]
[393256618,1762390232256,-262.2,0.00020681,2]
[393256619,1762390232265,-58.8759703,0.00021026,2]
[393256620,1762390232280,-1135.55707496,0.00021026,2]
[393256621,1762390232289,-1194.43304526,0.00021328,2]
[393256622,1762390232299,-1194.43304526,0.0002163,2]
[393256623,1762390232308,-1194.43304526,0.00021865,2]
[393256624,1762390232317,-1194.43304526,0.00021957,2]
[393256625,1762390232325,-1194.43304526,0.00022264,2]
[393256626,1762390232335,-1194.43304526,0.00022569,2]
[393256627,1762390232343,-177.0,0.0002264,2]
[393256628,1762390232352,-1194.43304526,0.00023006,2]
[393256629,1762390232362,-1194.43304526,0.0002318,2]
[393256630,1762390232370,-1194.43304526,0.00023434,2]
[393256631,1762390232380,-1194.43304526,0.00023574,2]
[393256632,1762390232390,-1194.43304526,0.00023962,2]
[393256633,1762390232399,-1194.43304526,0.0002438,2]
[393256634,1762390232408,-1194.43304526,0.00024413,2]
[393256635,1762390232417,-185.37831999,0.00024448,3]
[393256636,1762390232426,-204.0,0.0002464,2]
[393256637,1762390232436,-1194.43304536,0.00024759,2]
[393256638,1762390232445,-1000.0,0.00024958,2]
[393256639,1762390232454,-629.98084946,0.00024958,2]
[393256640,1762390232463,-160.0,0.00024968,2]
[393256641,1762390232473,-500.0,0.00024973,2]
[393256642,1762390232482,-446.89816903,0.00024973,2]
[393256643,1762390232492,-501.82387539,0.00024973,2]
[393256644,1762390232501,-500.0,0.00024973,2]
[393256645,1762390232510,-500.0,0.00024973,2]
[393256646,1762390232519,-469.94560342,0.00024973,2]
[393256647,1762390232528,-217.77512488,0.00024973,2]
[393256648,1762390232537,-500.0,0.00024973,2]
[393256649,1762390232546,-500.68757968,0.00024973,2]
[393256650,1762390232555,-500.0,0.00024973,2]
[393256651,1762390232564,-21642.68296622,0.00025,2]
[393256652,1762390232575,-687.77099396,0.00025,2]
[393256660,1762390238183,-3850.25951696,0.00025,2]
[393256661,1762390238195,-20207.036171,0.00025,2]
[393256662,1762390238204,-1089.30631016,0.00025078,2]
[393256663,1762390238214,-592.0428383,0.00025178,2]
[393256664,1762390238223,-592.0428383,0.00025178,2]
[393256665,1762390238232,-592.0428383,0.00025178,2]
[393256666,1762390238241,-245.98267008,0.00025178,2]
[393256708,1762390515323,151.0,0.00037284,120]
[393256709,1762390515957,151.0,0.00037284,120]
[393256710,1762390598770,161.0,0.000328,120]
[393256712,1762390683355,161.0,0.000328,120]
[393256713,1762390768855,177.88,0.00014673,2]
[393256715,1762391166654,540.011286,0.00013699,2]
[393256780,1762391432397,-150.0,0.00018751,2]
[393256782,1762391432406,-150.0,0.00019564,2]
[393256784,1762391432416,-540.011286,0.00020187,2]
[393256786,1762391432425,-96.67921213,0.00020806,2]
[393256789,1762391432437,-209.32078787,0.00020806,2]
[393256791,1762391432447,-129.84847122,0.00020952,2]
[393256859,1762392258882,7000.0,0.00032876,120]
[393256926,1762392609659,282.43382367,0.00037286,120]
[393256927,1762392620482,245.17909878,0.00037286,60]
[393257270,1762392645318,152.3885915,0.00037286,30]
[393257275,1762392646996,-3337.70955467,0.00018,2]
[393257276,1762392647008,-233.0,0.00018,2]
[393257277,1762392647017,-150.0,0.00019129,2]
[393257278,1762392647027,-150.0,0.00019947,2]
[393257279,1762392647036,-1253.89839991,0.00019984,2]
[393257280,1762392647045,-1253.89839991,0.0002027,2]
[393257281,1762392647055,-1253.89839991,0.00020422,2]
[393257282,1762392647064,-1253.89839992,0.00020765,2]
[393257283,1762392647073,-300.0,0.00020847,2]
[393257284,1762392647082,-300.0,0.00021133,2]
[393257285,1762392647091,-343.21105514,0.00021134,2]
[393257286,1762392647100,-508.71763209,0.00021134,2]
[393257287,1762392647110,-500.0,0.00021134,2]
[393257288,1762392647120,-178.07935508,0.00021134,2]
[393257289,1762392647129,-500.0,0.00021134,2]
[393257290,1762392647277,-528.40944725,0.00021134,2]
[393257291,1762392647287,-500.0,0.00021134,2]
[393257292,1762392647296,-207.84294615,0.00021134,2]
[393257293,1762392647305,-177.0,0.00021947,2]
[393257294,1762392647315,-237.80513443,0.00022538,2]
[393257295,1762392647324,-771.5103816,0.00022614,30]
[393257296,1762392647333,-211.4954251,0.00022765,2]
[393257297,1762392647342,-314.0,0.00022985,2]
[393257298,1762392647352,-393.53500104,0.00023724,2]
[393257299,1762392647360,-1500.0,0.0002385,2]
[393257300,1762392647369,-204.0,0.00023947,2]
[393257301,1762392647378,-4090.09046777,0.00024142,2]
[393257305,1762392705741,502.5,0.0003287,120]
[393257306,1762392735028,623.29871897,0.00037286,60]
[393257307,1762392742608,268.60644407,0.00037286,60]
[393257311,1762392747015,289.91027448,0.00037286,60]
[393257312,1762392754000,152.22706819,0.00037286,60]
[393257313,1762392758299,237.00324105,0.00037286,60]
[393257314,1762392767942,168.1475897,0.00037286,60]
[393257315,1762392774945,275.53171319,0.00037286,60]
[393257316,1762392783614,559.50767562,0.00037286,60]
[393257317,1762392794964,202.82868025,0.00037286,60]
[393257318,1762392797023,1563.0,0.00037286,20]
[393257319,1762392797799,312.96847783,0.00037286,60]
[393257320,1762392798275,150.07055278,0.00037286,60]
[393257322,1762392808346,237.05969022,0.00037286,60]
[393257323,1762392809536,566.88904708,0.00037286,60]
[393257324,1762392810915,273.11079145,0.00037286,60]
[393257325,1762392815263,424.64922935,0.00037286,60]
[393257326,1762392827197,4491.0,0.00037286,20]
[393257327,1762392851260,240.47177496,0.00037286,60]
[393257328,1762392863709,160.47821736,0.00037286,60]
[393257329,1762392909125,231.41745821,0.00037286,120]
[393257330,1762392974597,172.79053688,0.00037286,60]
[393257331,1762393096572,516.7,0.00014673,2]
[393257332,1762393140959,150.0,0.00037298,30]
[393257333,1762393261485,196.0,0.00037298,120]
[393257336,1762393720846,405.00597078,0.00037298,60]
[393257337,1762393759838,200.75541012,0.00037298,60]
[393257374,1762393831741,-535.823952,0.00022,2]
[393257376,1762393831751,-150.0,0.00022,2]
[393257378,1762393831760,-344.0,0.00022,2]
[393257380,1762393831770,-300.0,0.00023,2]
[393257382,1762393831779,-357.624326,0.00023288,30]
[393257384,1762393831788,-161.0839225,0.00023397,2]
[393257386,1762393831798,-300.0,0.00023923,2]
[393257388,1762393831807,-300.0,0.00023923,2]
[393257390,1762393831816,-300.0,0.00023923,2]
[393257393,1762393831825,-500.0,0.00023924,2]
[393257394,1762393831835,-648.17928254,0.00023924,2]
[393257397,1762393831844,-1200.0,0.00023924,2]
[393257398,1762393831853,-298.33178979,0.00023924,2]
[393257400,1762393831862,-5631.35680331,0.00023925,2]
[393257403,1762393831876,-1888.32552899,0.00023925,2]
[393257405,1762393831885,-2442.706632,0.00023925,2]
[393257407,1762393831894,-177.0,0.00024,2]
[393257409,1762393831904,-366.9920537,0.00024,2]
[393257411,1762393831913,-605.4410029,0.00024,2]
[393257413,1762393831923,-3908.0060659,0.00024142,2]
[393257415,1762393831931,-1181.0,0.00024185,2]
[393257417,1762393831940,-346.0601682,0.000242,2]
[393257419,1762393831949,-500.0,0.00024419,2]
[393257421,1762393831958,-592.0428383,0.000245,2]
[393257423,1762393831968,-500.0,0.00024525,2]
[393257425,1762393831977,-1061.46256095,0.0002455,2]
[393257427,1762393831986,-12683.74875875,0.0002465,2]
[393257634,1762393837595,-321.379654,0.00024142,7]
[393257635,1762393837606,-5310.01904398,0.0002465,2]
[393257636,1762393837617,-2860.09699934,0.0002465,2]
[393257637,1762393837629,-6896.2689289,0.0002465,2]
[393257638,1762393837650,-789.01218507,0.0002465,2]
[393257639,1762393837660,-982.6,0.0002465,2]
[393257640,1762393837671,-325.76237576,0.0002465,2]
[393257641,1762393837681,-2455.29251773,0.0002465,2]
[393257642,1762393837690,-151.0,0.0002465,7]
[393257643,1762393837700,-321.379654,0.0002465,7]
[393257645,1762393837709,-151.0,0.00024658,7]
[393257646,1762393837718,-187.0,0.00024681,2]
[393257648,1762393837727,-1181.0,0.00024734,2]
[393257650,1762393837736,-4388.77927547,0.00024778,2]
[393257651,1762393837746,-151.0,0.00024778,7]
[393257652,1762393837754,-151.0,0.00024778,7]
[393257653,1762393837764,-1675.0,0.00024851,2]
[393257654,1762393837773,-921.77227905,0.00024873,2]
[393257655,1762393837782,-1675.0,0.00024889,2]
[393257656,1762393837791,-151.0,0.00024889,7]
[393257657,1762393837800,-151.0,0.00024889,7]
[393257658,1762393837813,-161.0,0.000249,4]
[393257659,1762393837822,-161.0,0.000249,3]
[393257660,1762393837830,-160.11,0.000249,4]
[393257661,1762393837839,-1675.0,0.00024954,2]
[393257662,1762393837848,-160.0,0.0002497,2]
[393257663,1762393837857,-187.0,0.00025033,2]
[393257664,1762393837866,-156.206689,0.00025039,7]
[393257665,1762393837876,-156.613156,0.00025039,7]
[393257666,1762393837886,-1675.0,0.00025039,2]
[393257667,1762393837895,-182.0,0.00025042,2]
[393257668,1762393837904,-1000.0,0.00025073,2]
[393257669,1762393837913,-182.0,0.00025083,2]
[393257670,1762393837923,-182.0,0.00025119,2]
[393257671,1762393837933,-1675.0,0.00025154,7]
[393257672,1762393837942,-182.0,0.00025236,2]
[393257673,1762393837951,-182.0,0.00025255,2]
[393257674,1762393837960,-1675.0,0.00025276,2]
[393257675,1762393837969,-182.0,0.00025396,2]
[393257676,1762393837978,-182.0,0.00025421,2]
[393257677,1762393837988,-182.0,0.00025472,2]
[393257678,1762393837998,-182.0,0.00025593,2]
[393257679,1762393838007,-1001.77638961,0.00025621,2]
[393257680,1762393838019,-1675.0,0.00025856,2]
[393257681,1762393838028,-222.22222222,0.00025979,30]
[393257682,1762393838038,-230.34701442,0.0002599,2]
[393257683,1762393838048,-204.0,0.00026,2]
[393257684,1762393838059,-629.3,0.00026023,2]
[393257685,1762393838069,-986.0,0.00026023,2]
[393257686,1762393838079,-2165.0,0.00026023,2]
[393257687,1762393838088,-412.0,0.00026023,2]
[393257688,1762393838098,-1680.0,0.00026065,2]
[393257689,1762393838108,-924.16,0.000262,2]
[393257690,1762393838118,-6145.6388168,0.00026282,2]
[393257691,1762393838130,-3339.89497395,0.00026282,2]
[393257692,1762393838140,-2890.97134381,0.00026367,2]
[393257693,1762393838150,-15327.49977897,0.00026382,2]
[393257694,1762393838162,-68614.20160733,0.00026382,2]
[393257695,1762393838174,-34646.08066393,0.00026382,2]
[393257700,1762393839903,-321.379654,0.00024142,7]
[393257701,1762393839914,-321.379654,0.0002465,7]
[393257702,1762393839924,-321.379654,0.00024778,7]
[393257703,1762393839934,-321.379654,0.00024778,7]
[393257704,1762393839943,-321.379654,0.00024889,7]
[393257705,1762393839953,-321.379654,0.00024889,7]
[393257706,1762393839962,-321.379654,0.00025039,7]
[393257707,1762393839972,-3175.28421788,0.00026382,2]
[393257708,1762393839983,-48118.89786752,0.00026382,2]
[393257709,1762393839995,-3660.38859975,0.00026382,2]
[393257710,1762393840007,-3569.38651395,0.00026382,2]
[393257718,1762393842846,-321.379654,0.00024142,7]
[393257719,1762393842856,-199.30169328,0.00024142,7]
[393257720,1762393843058,-122.07796072,0.00024142,7]
[393257721,1762393843068,-321.379654,0.0002465,7]
[393257722,1762393843078,-321.379654,0.0002465,7]
[393257723,1762393843088,-321.379654,0.00024778,7]
[393257724,1762393843098,-133.3761326,0.00024778,7]
[393257729,1762393846169,-188.0035214,0.00024778,7]
[393257730,1762393846179,-321.379654,0.00024889,7]
[393257731,1762393846188,-321.379654,0.00024889,7]
[393257732,1762393846198,-321.379654,0.00025039,7]
[393257733,1762393846207,-321.379654,0.00025039,7]
[393257734,1762393846216,-321.37965086,0.00025039,7]
[393257735,1762393846226,-36791.19301334,0.00026382,2]
[393257736,1762393846237,-3605.49955301,0.00026382,2]
[393257737,1762393846248,-372.9242503,0.00026382,2]
[393257738,1762393846276,-13613.07735318,0.00026382,2]
[393257740,1762393951224,1000.0,0.00032,120]
[393257741,1762393958290,513.282053,0.00013699,2]
[393257762,1762394438800,1196.65415962,0.00037288,20]
[393257844,1762395031877,-262.0,0.00019198,2]
[393257846,1762395031887,-150.0,0.00019222,2]
[393257848,1762395031896,-399.56292103,0.00019783,2]
[393257850,1762395031905,-513.282053,0.00020187,2]
[393257852,1762395031914,-177.0,0.00021222,2]
[393257854,1762395031923,-204.0,0.00023222,2]
[393257856,1762395031932,-152.051702,0.0002465,2]
[393257858,1762395031941,-82.13394951,0.00025222,2]
[393257900,1762395037973,-148.86605049,0.00025222,2]
[393257901,1762395037983,-163.4585043,0.0002619,2]
[393257902,1762395037995,-5.81305473,0.0002619,2]
[393257903,1762395038005,-928.77974077,0.00026192,2]
[393257904,1762395038017,-1000.0,0.000262,7]
[393257905,1762395038026,-300.0,0.00026246,2]
[393257906,1762395038036,-150.0,0.00026247,2]
[393257907,1762395038046,-250.0,0.00026247,2]
[393257908,1762395038057,-265.068,0.00026247,2]
[393257909,1762395038067,-212.826,0.00026247,2]
[393257910,1762395038077,-628.0,0.00026247,2]
[393257911,1762395038087,-986.0,0.00026247,2]
[393257912,1762395038099,-2165.0,0.00026247,2]
[393257913,1762395038108,-412.0,0.00026247,2]
[393257914,1762395038119,-12244.40676564,0.00026272,2]
[393257934,1762395093227,500.0,0.00037288,60]
[393257935,1762395093427,500.0,0.00037288,60]
[393257936,1762395093746,500.0,0.00037288,60]
[393257937,1762395093986,528.24286681,0.00037288,60]
[393257942,1762395281839,489.75,0.00014673,2]
[393257945,1762395426897,1613.40700436,0.0002,20]
[393257946,1762395428334,322.79963655,0.00021,30]
[393257947,1762395434629,28879.71070542,0.00018,20]
[393257948,1762395434656,15290.88229022,0.00018,20]
[393257954,1762396042734,255814.47911366,0.00037285,20]
[393257955,1762396044464,1558.29367013,0.00037285,120]
[393257961,1762396078319,946.04150511,0.00037285,32]
[393257963,1762396084254,154.52367979,0.00037285,120]
[393257964,1762396093729,150.60208319,0.00037285,120]
[393257965,1762396102994,155.55427055,0.00037285,30]
[393257966,1762396103035,1227.2603797,0.00037285,60]
[393257967,1762396104840,803.99961908,0.00037285,120]
[393257968,1762396106866,159.52482031,0.00025,120]
[393257969,1762396106951,3472.248,0.000183,30]
[393257970,1762396109571,312.59445734,0.00037285,120]
[393257971,1762396110692,2632.57718114,0.00037285,120]
[393257972,1762396110735,266.15755962,0.00037285,120]
[393257973,1762396113355,254.92086421,0.00037285,60]
[393257974,1762396114152,170.04205043,0.000295,120]
[393257976,1762396117412,505.79275111,0.00037285,120]
[393257977,1762396117689,225.37163847,0.00037285,120]
[393258088,1762396238037,-1282.28036345,0.00021,30]
[393258089,1762396238047,-150.0,0.00021387,2]
[393258090,1762396238056,-324.0,0.00021387,2]
[393258091,1762396238066,-160.0,0.00023,14]
[393258092,1762396238076,-177.0,0.00023387,2]
[393258093,1762396238086,-413.0,0.00024141,2]
[393258094,1762396238095,-43529.18478467,0.00024142,2]
[393258095,1762396238105,-812.6822732,0.000249,2]
[393258096,1762396238114,-7529.21101568,0.00025,2]
[393258133,1762396240306,-2312.17436613,0.00025,2]
[393258238,1762396246589,-3400.47106645,0.00025,2]
[393258239,1762396246642,-487.07416272,0.00025,2]
[393258240,1762396550403,5000.0,0.00037283,70]
[393258241,1762396714121,532.7268512,0.00037283,20]
[393258243,1762396990777,1549.18572872,0.00037285,120]
[393258244,1762397018738,437.54,0.00037285,20]
[393258748,1762397347384,160.0,0.00037285,20]
[393258750,1762397356394,500.0,0.00037285,60]
[393258751,1762397356674,213.34881396,0.0003729,60]
[393258752,1762397358290,295.8627145,0.0003729,60]
[393258753,1762397360497,448.60125323,0.0003729,60]
[393258754,1762397361928,211.93,0.0003729,60]
[393258755,1762397364521,235.87259286,0.0003729,60]
[393258756,1762397369811,451.53392851,0.0003729,60]
[393258759,1762397380719,581.3604246,0.0003729,60]
[393258760,1762397382049,227.98593876,0.0003729,60]
[393258769,1762397391323,438.2201926,0.0003729,60]
[393258770,1762397393903,344.56375209,0.0003729,60]
[393258771,1762397398266,261.44289927,0.0003729,60]
[393258772,1762397399104,416.48654468,0.0003729,60]
[393258773,1762397401480,448.90500198,0.0003729,60]
[393258774,1762397402219,172.11947866,0.0003729,60]
[393258775,1762397403150,251.77726789,0.0003729,30]
[393258776,1762397404191,450.8999073,0.0003729,60]
[393258777,1762397405669,356.22361138,0.0003729,60]
[393258778,1762397407060,211.44076781,0.0003729,60]
[393258779,1762397407538,201.4373095,0.0003729,120]
[393258780,1762397407984,161.0,0.0003729,20]
[393258781,1762397419304,374.08468491,0.0003729,60]
[393258782,1762397419466,354.40197563,0.0003729,60]
[393258783,1762397419882,317.43591629,0.0003729,60]
[393258784,1762397420085,374.58048923,0.0003729,60]
[393258785,1762397420859,250.68408139,0.0003729,60]
[393258786,1762397423719,423.76194438,0.0003729,60]
[393258787,1762397425036,223.91624429,0.0003729,60]
[393258788,1762397426004,411.5287442,0.0003729,60]
[393258789,1762397426046,291.62073236,0.0003729,60]
[393258790,1762397430963,200.90116103,0.0003729,60]
[393258791,1762397431666,235.16097292,0.0003729,60]
[393258792,1762397431757,204.77037976,0.0003729,60]
[393258815,1762397432261,-321.0,0.00024567,2]
[393258864,1762397433447,267.89208125,0.0003729,30]
[393258865,1762397434159,500.0,0.0003729,60]
[393258866,1762397434955,403.58842139,0.0003729,60]
[393258867,1762397436111,441.48796876,0.0003729,60]
[393258882,1762397438200,-122.0,0.00024567,2]
[393258883,1762397438211,-150.0,0.00024567,2]
[393258884,1762397438221,-152.051702,0.00024774,2]
[393258885,1762397438230,-1200.0,0.00024998,2]
[393258886,1762397438240,-1200.0,0.00024999,2]
[393258887,1762397438249,-24615.99007469,0.00025,2]
[393258888,1762397438258,-819.03744981,0.00025231,2]
[393258889,1762397438268,-1718.3070331,0.00025331,2]
[393258890,1762397438277,-8819.3949854,0.00025331,2]
[393258891,1762397438286,-2052.2508615,0.00025331,2]
[393258892,1762397438295,-313.44778135,0.00025703,2]
[393258893,1762397438304,-628.0,0.00025704,2]
[393258894,1762397438313,-2165.0,0.00025704,2]
[393258895,1762397438325,-986.0,0.00025704,2]
[393258896,1762397438335,-412.0,0.00025704,2]
[393258897,1762397438344,-4411.0,0.00025704,2]
[393258898,1762397438357,-152.051702,0.00025933,2]
[393258899,1762397438366,-2643.79768868,0.00025976,2]
[393258900,1762397438375,-893.0,0.00026,2]
[393258901,1762397438383,-170.16,0.00026023,12]
[393258902,1762397438393,-399.6403651,0.00026095,2]
[393258903,1762397438403,-151.0,0.00026152,2]
[393258904,1762397438412,-19.92006437,0.00026152,7]
[393258905,1762397439967,367.30733742,0.0003729,60]
[393258952,1762397440409,-500.0,0.00024998,2]
[393258955,1762397440421,-500.0,0.00024998,2]
[393258957,1762397440432,-500.0,0.00024998,2]
[393258959,1762397440443,-500.0,0.00024998,2]
[393258961,1762397440454,-500.0,0.00024998,2]
[393258964,1762397440465,-500.0,0.00024998,2]
[393258966,1762397440476,-500.0,0.00024998,2]
[393258968,1762397440487,-500.0,0.00024998,2]
[393258970,1762397440497,-500.0,0.00024998,2]
[393258972,1762397440507,-500.0,0.00024998,2]
[393258974,1762397440517,-210.2559907,0.00024998,2]
[393258976,1762397440527,-500.0,0.00024998,2]
[393258979,1762397440539,-500.0,0.00024998,2]
[393258982,1762397440549,-500.0,0.00024998,2]
[393258984,1762397440559,-500.0,0.00024998,2]
[393258986,1762397440570,-131.07993563,0.00026152,7]
[393258988,1762397440580,-151.0,0.00026152,7]
[393258990,1762397440591,-151.0,0.00026152,7]
[393258992,1762397440601,-151.0,0.00026161,7]
[393258994,1762397440611,-151.0,0.00026161,7]
[393258996,1762397440622,-239.760596,0.00026161,7]
[393258998,1762397440632,-34559.8745919,0.00026162,2]
[393259001,1762397440643,-23129.69789773,0.00026162,2]
[393259003,1762397440658,-3608.13182916,0.00026162,2]
[393259076,1762397441484,500.0,0.0003729,60]
[393259095,1762397441731,165.21039195,0.0003729,60]
[393259269,1762397443422,-549.08782074,0.00026162,2]
[393259484,1762397445792,349.21823496,0.0003729,60]
[393259524,1762397446508,168.59032018,0.0003729,60]
[393259649,1762397447641,301.97488925,0.0003729,60]
[393259729,1762397448390,323.27395902,0.0003729,60]
[393259860,1762397449804,315.78586924,0.0003729,60]
[393259885,1762397450051,228.2752458,0.0003729,60]
[393260205,1762397453177,188.21185035,0.0003729,60]
[393260274,1762397454051,282.50942313,0.0003729,60]
[393260478,1762397456310,355.95147971,0.0003729,60]
[393260480,1762397456972,500.0,0.0003729,60]
[393260481,1762397457201,283.27685677,0.0003729,60]
[393260483,1762397462499,373.19280405,0.0003729,60]
[393260484,1762397463936,510.11048868,0.0003729,60]
[393260485,1762397466198,388.58587355,0.0003729,60]
[393260486,1762397468399,189.5937799,0.0003729,60]
[393260487,1762397479386,240.85848603,0.0003729,60]
[393260488,1762397480848,477.47384143,0.0003729,60]
[393260489,1762397481933,200.0,0.0003729,30]
[393260490,1762397483519,451.1662959,0.0003729,60]
[393260491,1762397484780,436.67985417,0.0003729,60]
[393260492,1762397485635,347.06273754,0.0003729,60]
[393260493,1762397493228,272.84822486,0.0003729,60]
[393260494,1762397495939,352.58942985,0.0003729,60]
[393260495,1762397499739,560.66920818,0.0003729,60]
[393260496,1762397504337,301.70165568,0.0003729,60]
[393260497,1762397505213,256.07513879,0.0003729,60]
[393260498,1762397507914,279.66675696,0.0003729,60]
[393260499,1762397508001,611.28447576,0.0003729,60]
[393260500,1762397515094,500.0,0.0003729,60]
[393260501,1762397515610,188.38714813,0.0003729,60]
[393260502,1762397520404,177.62485186,0.0003729,60]
[393260503,1762397525586,302.06063443,0.0003729,60]
[393260504,1762397526263,430.29977885,0.0003729,60]
[393260505,1762397526320,522.61455895,0.0003729,60]
[393260506,1762397527238,449.29488249,0.0003729,60]
[393260507,1762397528020,192.86085329,0.0003729,60]
[393260516,1762397535534,189.98592048,0.0003729,60]
[393260518,1762397536587,607.41180263,0.0003729,60]
[393260519,1762397537772,411.01755358,0.0003729,60]
[393260523,1762397539574,351.29000949,0.0003729,60]
[393260524,1762397539825,230.27020365,0.0003729,60]
[393260527,1762397543118,344.71521025,0.0003729,60]
[393260528,1762397544408,266.73004863,0.0003729,60]
[393260529,1762397544541,500.0,0.0003729,60]
[393260530,1762397544798,272.21744104,0.0003729,60]
[393260531,1762397546671,297.46976956,0.0003729,60]
[393260532,1762397547713,468.11307713,0.0003729,60]
[393260533,1762397548210,436.5713748,0.0003729,60]
[393260534,1762397551369,275.63450936,0.0003729,60]
[393260535,1762397552177,604.93059603,0.0003729,60]
[393260536,1762397554830,468.9788025,0.0003729,60]
[393260537,1762397555720,379.3498266,0.0003729,60]
[393260538,1762397557424,500.0,0.0003729,60]
[393260539,1762397557659,333.83588016,0.0003729,60]
[393260540,1762397559155,358.79389864,0.0003729,60]
[393260541,1762397562043,342.22805899,0.0003729,60]
[393260542,1762397562680,1082.599999,0.0003729,30]
[393260543,1762397564143,500.0,0.0003729,60]
[393260544,1762397564374,320.06117576,0.0003729,60]
[393260545,1762397564448,195.7966087,0.0003729,60]
[393260547,1762397567339,174.58545564,0.0003729,60]
[393260548,1762397570632,335.52203236,0.0003729,60]
[393260549,1762397572638,262.893011,0.0003729,60]
[393260550,1762397572904,500.0,0.0003729,60]
[393260551,1762397573178,245.66906992,0.0003729,60]
[393260552,1762397575375,263.02607459,0.0003729,60]
[393260553,1762397576062,551.72086027,0.0003729,60]
[393260554,1762397577567,561.72870135,0.0003729,60]
[393260555,1762397578247,360.82043262,0.0003729,60]
[393260556,1762397581378,444.6318338,0.0003729,60]
[393260557,1762397584943,500.0,0.0003729,60]
[393260558,1762397585140,279.34080904,0.0003729,60]
[393260559,1762397586136,398.40837398,0.0003729,60]
[393260560,1762397587398,476.62294164,0.0003729,60]
[393260561,1762397589575,383.39287706,0.0003729,30]
[393260562,1762397590300,570.10172291,0.0003729,60]
[393260563,1762397591604,168.9184456,0.0003729,60]
[393260564,1762397593977,379.53260427,0.0003729,60]
[393260565,1762397594021,309.98,0.0003729,60]
[393260566,1762397596247,500.0,0.0003729,60]
[393260567,1762397596528,187.90219816,0.0003729,60]
[393260568,1762397596695,367.13463347,0.0003729,60]
[393260569,1762397597439,275.84008606,0.0003729,60]
[393260570,1762397598831,611.30007979,0.0003729,60]
[393260571,1762397599632,561.15006376,0.0003729,60]
[393260572,1762397600026,209.02490838,0.0003729,60]
[393260573,1762397603459,371.17664802,0.0003729,60]
[393260574,1762397604336,480.42585758,0.0003729,60]
[393260575,1762397606466,408.2660794,0.0003729,60]
[393260576,1762397608463,371.59560448,0.0003729,60]
[393260578,1762397610712,239.58359913,0.0003729,60]
[393260582,1762397612265,169.04933025,0.0003729,60]
[393260585,1762397612582,234.62458928,0.0003729,60]
[393260592,1762397614260,351.92743615,0.0003729,60]
[393260594,1762397614591,272.31032113,0.0003729,60]
[393260602,1762397618249,500.0,0.0003729,60]
[393260603,1762397618536,343.17985352,0.0003729,60]
[393260604,1762397618716,199.26042565,0.0003729,60]
[393260609,1762397620678,216.05325787,0.0003729,60]
[393260610,1762397620849,500.0,0.0003729,60]
[393260611,1762397620966,235.24579673,0.0003729,60]
[393260612,1762397621127,349.97439718,0.0003729,60]
[393260613,1762397621279,453.00282486,0.0003729,60]
[393260614,1762397622124,276.95161278,0.0003729,60]
[393260615,1762397623138,582.38746627,0.0003729,60]